bitfinex-derivatives/quotes_BTCF0:USTF0_20241231
["timestamp","ask_amount","ask_price","bid_price","bid_amount"]
[1735673231650,0.053217,94071.0,94070.0,0.053218]
[1735673232651,0.053215,94076.0,94072.0,0.053216]
[1735673232847,0.053215,94076.0,94073.0,0.053216]
[1735673233649,0.053215,94076.0,94075.0,0.01733384]
[1735673233859,0.053215,94076.0,94070.0,0.053218]
[1735673234151,0.08523727,94076.0,94074.0,0.053215]
[1735673234553,0.08523727,94076.0,94070.0,0.001]
[1735673234850,0.08523727,94076.0,94075.0,0.053215]
[1735673236173,0.08723727,94076.0,94075.0,0.053215]
[1735673236852,0.03502227,94076.0,94075.0,0.053215]
[1735673237045,0.003,94076.0,94075.0,0.053215]
[1735673246762,0.053203,94097.0,94095.0,0.053204]
[1735673246977,0.03135882,94099.0,94087.0,0.3608]
[1735673247152,0.1,94100.0,94090.0,0.053207]
[1735673247360,0.1,94100.0,94099.0,0.053201]
[1735673247751,0.15368779,94100.0,94099.0,0.053201]
[1735673248455,0.15668779,94100.0,94099.0,0.053201]
[1735673248854,0.15668779,94100.0,94099.0,0.054201]
[1735673249054,0.20988879,94100.0,94099.0,0.054201]
[1735673249458,0.053206,94091.0,94087.0,0.3608]
[1735673249654,0.053206,94091.0,94090.0,0.053206]
[1735673251055,0.053204,94095.0,94090.0,0.001]
[1735673251255,0.053204,94095.0,94094.0,0.053204]
[1735673252764,0.053206,94091.0,94090.0,0.003]
[1735673253561,0.053206,94091.0,94090.0,0.002]
[1735673254262,0.1174,94099.0,94089.0,0.053207]
[1735673254481,0.3608,94096.0,94069.0,0.00159442]
[1735673254672,0.053214,94076.0,94074.0,0.053215]
[1735673255057,0.053214,94076.0,94069.0,0.00159442]
[1735673255257,0.053218,94070.0,94069.0,0.00159442]
[1735673257371,0.053218,94070.0,94069.0,0.00359442]
[1735673257570,0.053218,94070.0,94069.0,0.00759442]
[1735673258064,0.053218,94070.0,94069.0,0.00659442]
[1735673258268,0.053218,94070.0,94069.0,0.00459442]
[1735673261870,0.053218,94070.0,94069.0,0.00359442]
[1735673266561,0.053218,94070.0,94069.0,0.05681242]
[1735673266762,0.3608,94072.0,94069.0,0.00359442]
[1735673266965,0.3608,94072.0,94071.0,0.053217]
[1735673267669,0.414017,94072.0,94071.0,0.053217]
[1735673268067,0.053218,94070.0,94069.0,0.00359442]
[1735673268469,0.053218,94070.0,94069.0,0.05681242]
[1735673268978,0.053218,94070.0,94069.0,0.00259442]
[1735673269574,0.053218,94070.0,94069.0,0.00159442]
[1735673270478,0.053218,94070.0,94069.0,0.00359442]
[1735673271477,0.053218,94070.0,94069.0,0.00459442]
[1735673271881,0.053218,94070.0,94069.0,0.00259442]
[1735673272066,0.053218,94070.0,94069.0,0.00359442]
[1735673272267,0.053218,94070.0,94069.0,0.05681242]
[1735673272479,0.053218,94070.0,94069.0,0.05781242]
[1735673275075,0.053218,94070.0,94069.0,0.00459442]
[1735673276080,0.053218,94070.0,94069.0,0.00359442]
[1735673276376,0.053218,94070.0,94069.0,0.00459442]
[1735673280384,0.053218,94070.0,94069.0,0.00259442]
[1735673280580,0.053218,94070.0,94069.0,0.00359442]
[1735673280779,0.053218,94070.0,94069.0,0.00459442]
[1735673281693,0.053218,94070.0,94069.0,0.00259442]
[1735673281987,0.053218,94070.0,94069.0,0.00359442]
[1735673282376,0.053218,94070.0,94069.0,0.00259442]
[1735673282584,0.053218,94070.0,94069.0,0.00359442]
[1735673284490,0.053218,94070.0,94069.0,0.05681242]
[1735673285088,0.053218,94070.0,94069.0,0.00359442]
[1735673287189,0.053218,94070.0,94069.0,0.002]
[1735673287391,0.053228,94053.0,94052.0,0.0404]
[1735673289093,0.053231,94047.0,94045.0,0.0381]
[1735673290185,0.053231,94047.0,94046.0,0.0408]
[1735673290593,0.053231,94047.0,94046.0,0.0468]
[1735673291187,0.053231,94047.0,94046.0,0.100031]
[1735673291585,0.053231,94047.0,94046.0,0.0468]
[1735673292195,0.053231,94047.0,94046.0,0.100031]
[1735673292400,0.053231,94047.0,94046.0,0.009]
[1735673293499,0.053231,94047.0,94046.0,0.003]
[1735673293693,0.053231,94047.0,94046.0,0.005]
[1735673294104,0.03886268,94053.0,94046.0,0.005]
[1735673294402,0.053231,94047.0,94046.0,0.004]
[1735673294604,0.053231,94047.0,94046.0,0.0391]
[1735673294903,0.053231,94047.0,94046.0,0.0401]
[1735673296002,0.053231,94047.0,94046.0,0.0431]
[1735673296995,0.053231,94047.0,94046.0,0.096331]
[1735673297695,0.053231,94047.0,94046.0,0.056231]
[1735673297890,0.053231,94047.0,94046.0,0.060231]
[1735673298989,0.053231,94047.0,94046.0,0.059231]
[1735673299220,0.08652053,94060.0,94046.0,0.059231]
[1735673299397,0.053231,94047.0,94046.0,0.059231]
[1735673299698,0.053231,94047.0,94046.0,0.056231]
[1735673301733,0.053231,94047.0,94046.0,0.058231]
[1735673301910,0.053229,94052.0,94051.0,0.053228]
[1735673304104,0.053229,94052.0,94051.0,0.056228]
[1735673305407,0.053229,94052.0,94051.0,0.057228]
[1735673305798,0.053229,94052.0,94051.0,0.056228]
[1735673305998,0.053229,94052.0,94051.0,0.055228]
[1735673306198,0.053229,94052.0,94051.0,0.056228]
[1735673307309,0.053229,94052.0,94051.0,0.054228]
[1735673307511,0.053229,94052.0,94051.0,0.057228]
[1735673308502,0.053229,94052.0,94051.0,0.001]
[1735673308814,0.053229,94052.0,94051.0,0.003]
[1735673310414,0.053229,94052.0,94051.0,0.004]
[1735673310998,0.053229,94052.0,94051.0,0.003]
[1735673315413,0.053229,94052.0,94051.0,0.056229]
[1735673317016,0.053229,94052.0,94051.0,0.003]
[1735673320510,0.053233,94043.0,94035.0,0.3608]
[1735673320717,0.414029,94052.0,94035.0,0.053238]
[1735673320718,0.053237,94036.0,94035.0,0.053238]
[1735673321716,0.053237,94036.0,94035.0,0.066238]
[1735673322915,0.10069171,94036.0,94035.0,0.066238]
[1735673328309,0.08704091,94050.0,94035.0,0.066238]
[1735673328511,0.053235,94044.0,94043.0,0.053233]
[1735673330014,0.053235,94040.0,94039.0,0.053235]
[1735673331723,0.08704091,94050.0,94034.0,0.3975]
[1735673331918,0.08704091,94050.0,94043.0,0.053233]
[1735673332117,0.04626917,94051.0,94050.0,0.053229]
[1735673332318,0.053231,94047.0,94046.0,0.053231]
[1735673332817,0.04743487,94051.0,94050.0,0.053229]
[1735673333014,0.3608,94052.0,94051.0,0.053229]
[1735673333220,0.46055705,94052.0,94051.0,0.053229]
[1735673334217,0.46055705,94052.0,94051.0,0.054229]
[1735673334715,0.46055705,94052.0,94051.0,0.056229]
[1735673336816,0.46055705,94052.0,94051.0,0.003]
[1735673344427,0.46055705,94052.0,94051.0,0.056229]
[1735673347726,0.46055705,94052.0,94051.0,0.003]
[1735673354925,0.46055705,94052.0,94029.0,0.0748]
[1735673355127,0.053238,94034.0,94033.0,0.00159497]
[1735673356137,0.053238,94034.0,94033.0,0.00559497]
[1735673357739,0.053238,94034.0,94033.0,0.00159497]
[1735673358040,0.053238,94034.0,94033.0,0.01459497]
[1735673359134,0.053238,94034.0,94033.0,0.06783397]
[1735673359543,0.053238,94034.0,94033.0,0.01459497]
[1735673360034,0.1063469,94034.0,94033.0,0.01459497]
[1735673370547,0.0531089,94034.0,94033.0,0.01459497]
[1735673370746,0.053237,94037.0,94033.0,0.01459497]
[1735673370952,0.053237,94037.0,94036.0,0.053237]
[1735673372446,0.053237,94037.0,94036.0,0.062237]
[1735673373645,0.053237,94037.0,94036.0,0.066237]
[1735673377648,0.41551448,94043.0,94036.0,0.013]
[1735673377857,0.053237,94037.0,94036.0,0.066237]
[1735673379655,0.053237,94037.0,94036.0,0.065237]
[1735673380365,0.053237,94037.0,94036.0,0.062237]
[1735673380655,0.053237,94037.0,94036.0,0.065237]
[1735673384550,0.053234,94041.0,94040.0,0.053234]
[1735673386156,0.053234,94041.0,94040.0,0.059234]
[1735673386855,0.053234,94041.0,94040.0,0.061234]
[1735673389353,0.053234,94041.0,94040.0,0.008]
[1735673391354,0.42009349,94041.0,94012.0,0.00159561]
[1735673391566,0.414044,94023.0,94012.0,0.00159561]
[1735673391751,0.414044,94023.0,94022.0,0.17523294]
[1735673392054,0.414044,94023.0,94022.0,0.15672882]
[1735673392656,0.414044,94023.0,94012.0,0.00159561]
[1735673392657,0.05325,94013.0,94012.0,0.00159561]
[1735673392851,0.41405,94013.0,94012.0,0.00159561]
[1735673393859,0.46645162,94013.0,94012.0,0.00359561]
[1735673395965,0.46645162,94013.0,94012.0,0.00659561]
[1735673400262,0.41320162,94013.0,94012.0,0.05984661]
[1735673400966,0.46645162,94013.0,94012.0,0.05984661]
[1735673401268,0.10565162,94013.0,94012.0,0.05984661]
[1735673401463,0.05240162,94013.0,94012.0,0.05984661]
[1735673401655,0.053248,94017.0,94012.0,0.00659561]
[1735673401860,0.053248,94017.0,94014.0,0.053249]
[1735673402258,0.053249,94016.0,94014.0,0.053249]
[1735673403066,0.053249,94016.0,94014.0,0.056249]
[1735673403370,0.053249,94015.0,94014.0,0.056249]
[1735673403667,0.053249,94015.0,94014.0,0.057249]
[1735673405864,0.10772288,94015.0,94014.0,0.004]
[1735673406176,0.053249,94015.0,94014.0,0.004]
[1735673407767,0.053247,94019.0,94016.0,0.053248]
[1735673407973,0.053247,94019.0,94018.0,0.053247]
[1735673408370,0.05301876,94022.0,94021.0,0.053246]
[1735673408563,0.3608,94023.0,94015.0,0.0378]
[1735673408760,0.3608,94023.0,94022.0,0.053245]
[1735673409165,0.3608,94023.0,94016.0,0.001]
[1735673409370,0.3608,94023.0,94018.0,0.001]
[1735673409570,0.053247,94019.0,94018.0,0.001]
[1735673409875,0.41459734,94023.0,94015.0,0.092049]
[1735673410188,0.053248,94017.0,94015.0,0.092049]
[1735673410567,0.053248,94016.0,94015.0,0.092049]
[1735673411362,0.053248,94016.0,94015.0,0.091049]
[1735673412176,0.053248,94016.0,94015.0,0.093049]
[1735673412377,0.053248,94016.0,94015.0,0.094049]
[1735673412870,0.053248,94016.0,94015.0,0.003]
[1735673417278,0.053248,94016.0,94015.0,0.056249]
[1735673418976,0.01154713,94022.0,94015.0,0.003]
[1735673419181,0.053245,94022.0,94016.0,0.053248]
[1735673419375,0.053245,94022.0,94021.0,0.053246]
[1735673419979,0.05383734,94023.0,94022.0,0.053245]
[1735673420179,0.14035021,94040.0,94038.0,0.053236]
[1735673420480,0.3608,94041.0,94026.0,0.3608]
[1735673420682,0.3608,94041.0,94040.0,0.053235]
[1735673420878,0.04372232,94041.0,94040.0,0.053235]
[1735673421079,0.00159562,94042.0,94041.0,0.053234]
[1735673421880,0.04598508,94042.0,94041.0,0.053234]
[1735673422485,0.05198508,94042.0,94041.0,0.054234]
[1735673422877,0.05698508,94042.0,94041.0,0.054234]
[1735673424082,0.05538946,94042.0,94041.0,0.054234]
[1735673424587,0.04938946,94042.0,94041.0,0.054234]
[1735673424886,0.04438946,94042.0,94041.0,0.054234]
[1735673425188,0.053233,94043.0,94042.0,0.053234]
[1735673425886,0.09883608,94043.0,94042.0,0.053234]
[1735673426386,0.053234,94042.0,94041.0,0.001]
[1735673427372,0.04544195,94048.0,94041.0,0.001]
[1735673427578,0.053231,94047.0,94045.0,0.053232]
[1735673427778,0.053231,94047.0,94046.0,0.053231]
[1735673428485,0.09868624,94052.0,94051.0,0.053229]
[1735673428486,0.01157103,94052.0,94051.0,0.053229]
[1735673428786,0.0021553,94066.0,94065.0,0.053221]
[1735673428997,0.00159529,94066.0,94065.0,0.053221]
[1735673429775,0.00159529,94066.0,94051.0,0.3608]
[1735673429979,0.14033821,94061.0,94057.0,0.053225]
[1735673430182,0.053223,94061.0,94057.0,0.053225]
[1735673430392,0.00159529,94066.0,94057.0,0.053225]
[1735673430582,0.053224,94060.0,94057.0,0.053225]
[1735673430778,0.00659529,94066.0,94052.0,0.053228]
[1735673430975,0.053226,94057.0,94055.0,0.053226]
[1735673431175,0.053226,94057.0,94056.0,0.053226]
[1735673431374,0.00659529,94066.0,94061.0,0.053223]
[1735673431579,0.053221,94064.0,94062.0,0.053222]
[1735673432582,0.053221,94064.0,94063.0,0.053222]
[1735673432777,0.00359529,94066.0,94065.0,0.053221]
[1735673433879,0.3608,94083.0,94066.0,0.05322]
[1735673434086,0.40500171,94083.0,94082.0,0.053211]
[1735673434290,0.40500171,94083.0,94075.0,0.3608]
[1735673434488,0.053213,94080.0,94068.0,1.50068]
[1735673434795,0.14032821,94080.0,94068.0,1.50068]
[1735673434993,0.14032821,94080.0,94079.0,0.053213]
[1735673435190,0.053213,94080.0,94079.0,0.053213]
[1735673436879,0.053213,94078.0,94067.0,0.0359]
[1735673437089,0.053218,94069.0,94068.0,0.001]
[1735673437688,0.19981521,94074.0,94059.0,0.053224]
[1735673437881,0.19981521,94074.0,94056.0,0.00159467]
[1735673437882,0.3608,94062.0,94056.0,0.00159467]
[1735673438083,0.053225,94057.0,94056.0,0.00159467]
[1735673440192,0.0115321,94063.0,94056.0,0.00159467]
[1735673440385,0.3608,94070.0,94056.0,0.00159467]
[1735673440386,0.053221,94065.0,94063.0,0.053221]
[1735673440693,0.053221,94065.0,94056.0,0.00159467]
[1735673440694,0.053221,94065.0,94057.0,0.0363]
[1735673440886,0.053221,94065.0,94064.0,0.053221]
[1735673442486,0.49432986,94070.0,94057.0,0.0751]
[1735673442684,0.49376985,94070.0,94059.0,0.053224]
[1735673443189,0.001,94065.0,94059.0,0.053224]
[1735673443393,0.053223,94062.0,94059.0,0.053224]
[1735673443801,0.001,94065.0,94057.0,0.002]
[1735673444014,0.053225,94058.0,94057.0,0.002]
[1735673444208,0.053225,94058.0,94056.0,0.00159467]
[1735673444406,0.053225,94058.0,94056.0,0.05481967]
[1735673445503,0.001,94058.0,94056.0,0.00159467]
[1735673445807,0.053225,94057.0,94056.0,0.00159467]
[1735673446911,0.053234,94042.0,94041.0,0.053234]
[1735673448508,0.053234,94042.0,94041.0,0.055234]
[1735673449803,0.053234,94042.0,94041.0,0.056234]
[1735673451297,0.0355,94055.0,94041.0,0.056234]
[1735673451498,0.053229,94051.0,94050.0,0.053227]
[1735673453111,0.414023,94062.0,94048.0,0.05323]
[1735673453112,0.053224,94059.0,94048.0,0.05323]
[1735673453410,0.3608,94054.0,94042.0,0.053234]
[1735673453615,0.053233,94044.0,94043.0,0.053233]
[1735673455006,0.0382,94051.0,94042.0,0.001]
[1735673455207,0.053233,94043.0,94042.0,0.001]
[1735673455818,0.053233,94043.0,94042.0,0.054234]
[1735673456013,0.053233,94043.0,94042.0,0.053234]
[1735673456912,0.053233,94043.0,94042.0,0.054234]
[1735673457415,0.053233,94043.0,94042.0,0.056234]
[1735673457617,0.053233,94043.0,94042.0,0.055234]
[1735673457918,0.053233,94043.0,94042.0,0.056234]
[1735673458617,0.1451911,94053.0,94052.0,0.053228]
[1735673458618,0.15127508,94053.0,94052.0,0.053228]
[1735673458813,0.09804708,94053.0,94052.0,0.053228]
[1735673459217,0.03984708,94053.0,94052.0,0.053228]
[1735673459610,0.00159513,94061.0,94052.0,1.588528]
[1735673459813,0.00159513,94061.0,94060.0,0.414024]
[1735673460420,0.414016,94074.0,94073.0,0.053216]
[1735673460607,0.10023197,94087.0,94077.0,0.053214]
[1735673460813,0.053213,94078.0,94077.0,0.053214]
[1735673461321,0.39963479,94081.0,94068.0,0.3608]
[1735673461514,0.053218,94069.0,94068.0,0.414019]
[1735673461717,0.006,94074.0,94073.0,0.053216]
[1735673463116,0.053213,94079.0,94068.0,0.3608]
[1735673463319,0.006,94078.0,94077.0,0.054214]
[1735673464635,0.006,94074.0,94073.0,0.053216]
[1735673465118,0.45292678,94081.0,94068.0,0.3608]
[1735673465316,0.006,94078.0,94077.0,0.054214]
[1735673466917,0.01,94078.0,94077.0,0.054214]
[1735673467117,0.004,94078.0,94077.0,0.053214]
[1735673467828,0.01,94078.0,94077.0,0.054214]
[1735673468926,0.063213,94078.0,94077.0,0.054214]
[1735673470325,0.063213,94078.0,94077.0,0.001]
[1735673470526,0.01,94078.0,94050.0,0.3608]
[1735673470726,0.053227,94054.0,94048.0,0.05323]
[1735673471019,0.053228,94053.0,94038.0,0.053236]
[1735673471230,0.08711521,94060.0,94037.0,0.053236]
[1735673471231,0.053228,94052.0,94048.0,0.05323]
[1735673471431,0.053228,94052.0,94049.0,0.053229]
[1735673471625,0.053226,94055.0,94046.0,0.3608]
[1735673471830,0.053232,94051.0,94050.0,0.053232]
[1735673472521,0.053232,94051.0,94036.0,0.3608]
[1735673472522,0.3608,94052.0,94036.0,0.3608]
[1735673472727,0.3608,94052.0,94033.0,0.0352]
[1735673472728,0.3608,94044.0,94033.0,0.0352]
[1735673472929,0.3608,94044.0,94033.0,0.053242]
[1735673473120,0.053242,94034.0,94033.0,0.053242]
[1735673474333,0.054242,94034.0,94033.0,0.007]
[1735673474922,0.054242,94034.0,94033.0,0.011]
[1735673475524,0.054242,94034.0,94033.0,0.064243]
[1735673475730,0.054242,94034.0,94033.0,0.063243]
[1735673475930,0.053242,94034.0,94033.0,0.056243]
[1735673476126,0.054242,94034.0,94033.0,0.01]
[1735673476651,0.054242,94034.0,94033.0,0.063243]
[1735673477133,0.054242,94034.0,94033.0,0.01]
[1735673477925,0.054242,94034.0,94033.0,0.063243]
[1735673478526,0.001,94034.0,94033.0,0.063243]
[1735673480036,0.03260424,94035.0,94033.0,0.056243]
[1735673480227,0.3967,94043.0,94033.0,0.064243]
[1735673480228,0.001,94034.0,94033.0,0.064243]
[1735673480837,0.001,94034.0,94033.0,0.063243]
[1735673481627,0.33351462,94043.0,94033.0,0.01]
[1735673481836,0.053242,94035.0,94033.0,0.01]
[1735673482234,0.053242,94035.0,94033.0,0.007]
[1735673482431,0.053242,94035.0,94033.0,0.009]
[1735673482736,0.053242,94035.0,94033.0,0.002]
[1735673482937,0.053242,94034.0,94033.0,0.008]
[1735673483329,0.053242,94034.0,94033.0,0.002]
[1735673483529,0.053242,94034.0,94033.0,0.008]
[1735673484840,0.053242,94034.0,94033.0,0.009]
[1735673487029,0.053242,94034.0,94033.0,0.003]
[1735673487330,0.053242,94034.0,94033.0,0.009]
[1735673487839,0.053242,94034.0,94033.0,0.006]
[1735673488136,0.053242,94034.0,94033.0,0.009]
[1735673491033,0.053242,94034.0,94033.0,0.062243]
[1735673492236,0.053242,94034.0,94033.0,0.009]
[1735673493239,0.414042,94034.0,94033.0,0.009]
[1735673495343,0.414042,94034.0,94033.0,0.062243]
[1735673497937,0.414042,94034.0,94033.0,0.060243]
[1735673498239,0.414042,94034.0,94033.0,0.007]
[1735673498838,0.414042,94034.0,94033.0,0.004]
[1735673500047,0.414042,94034.0,94032.0,0.053243]
[1735673500249,0.414042,94034.0,94033.0,0.001]
[1735673501045,0.414042,94034.0,94032.0,0.053243]
[1735673502442,0.053243,94033.0,94032.0,0.053243]
[1735673502844,0.053245,94030.0,94027.0,0.0385]
[1735673504043,0.053245,94030.0,94029.0,0.053245]
[1735673504443,0.053245,94030.0,94027.0,0.0385]
[1735673504444,0.3608,94034.0,94033.0,0.053243]
[1735673504844,0.414043,94034.0,94033.0,0.053243]
[1735673505043,0.053245,94029.0,94028.0,0.053245]
[1735673506650,0.053245,94029.0,94028.0,0.055245]
[1735673506970,0.414045,94029.0,94028.0,0.002]
[1735673507251,0.414045,94029.0,94028.0,0.00072136]
[1735673507476,0.414045,94029.0,94028.0,0.00137225]
[1735673508046,0.053253,94017.0,94004.0,0.3608]
[1735673508245,0.3608,94013.0,94004.0,0.3608]
[1735673508654,0.3608,94013.0,94012.0,0.053255]
[1735673509053,0.414054,94013.0,94012.0,0.053255]
[1735673509971,0.415054,94013.0,94012.0,0.062255]
[1735673510153,0.415054,94013.0,94012.0,0.009]
[1735673510855,0.415054,94013.0,94012.0,0.013]
[1735673511450,0.415054,94013.0,94012.0,0.009]
[1735673511651,0.415054,94013.0,94012.0,0.011]
[1735673511845,0.414054,94013.0,94012.0,0.002]
[1735673512059,0.44264628,94013.0,94012.0,0.006]
[1735673515157,0.44264628,94013.0,94012.0,0.059255]
[1735673522354,0.38939228,94013.0,94012.0,0.059255]
[1735673522754,0.02859228,94013.0,94012.0,0.059255]
[1735673522960,0.053251,94019.0,94018.0,0.053251]
[1735673524568,0.053251,94019.0,94018.0,0.054251]
[1735673525662,0.01892419,94027.0,94019.0,0.053251]
[1735673525967,0.3608,94039.0,94031.0,0.053244]
[1735673525968,0.053241,94038.0,94031.0,0.053244]
[1735673526460,0.3608,94039.0,94031.0,0.053244]
[1735673526662,0.02879773,94033.0,94031.0,0.053244]
[1735673526860,0.3608,94039.0,94031.0,0.053244]
[1735673527059,0.3608,94039.0,94038.0,0.05324]
[1735673527668,0.38860781,94039.0,94038.0,0.05324]
[1735673529073,0.39160781,94039.0,94038.0,0.05324]
[1735673529462,0.39360781,94039.0,94038.0,0.05324]
[1735673530973,0.39460781,94039.0,94038.0,0.05324]
[1735673536168,0.39460781,94039.0,94024.0,0.3608]
[1735673536369,0.053242,94035.0,94032.0,0.053243]
[1735673536684,0.053242,94035.0,94034.0,0.053242]
[1735673538166,0.054242,94035.0,94034.0,0.053242]
[1735673538680,0.053242,94035.0,94034.0,0.053242]
[1735673538879,0.002,94035.0,94034.0,0.053242]
[1735673539084,0.003,94035.0,94034.0,0.053242]
[1735673546480,0.02436176,94041.0,94034.0,0.053242]
[1735673546481,0.3608,94050.0,94034.0,1.5]
[1735673546684,0.47728,94068.0,94034.0,1.5]
[1735673546685,0.053227,94062.0,94061.0,0.053227]
[1735673546922,0.03063675,94068.0,94065.0,0.053225]
[1735673547386,0.0248911,94066.0,94065.0,0.053225]
[1735673547686,0.05322,94075.0,94072.0,0.053221]
[1735673547882,0.0263482,94073.0,94072.0,0.053221]
[1735673548073,0.00159498,94073.0,94072.0,0.053221]
[1735673548275,0.05481498,94073.0,94072.0,0.053221]
[1735673549181,0.06381498,94073.0,94072.0,0.001]
[1735673550572,0.06981498,94073.0,94072.0,0.001]
[1735673553690,0.01659498,94073.0,94037.0,0.3608]
[1735673553986,0.414031,94054.0,94033.0,0.3608]
[1735673554183,0.414031,94054.0,94040.0,0.053239]
[1735673554378,0.414031,94054.0,94033.0,0.3608]
[1735673554694,0.414031,94054.0,94033.0,0.053243]
[1735673554889,0.053241,94037.0,94034.0,0.053242]
[1735673555082,0.3608,94042.0,94025.0,0.053247]
[1735673555588,0.053239,94040.0,94037.0,0.05324]
[1735673555787,0.3608,94042.0,94037.0,0.05324]
[1735673555990,0.3608,94042.0,94025.0,0.053247]
[1735673555991,0.05324,94039.0,94025.0,0.02438123]
[1735673556189,0.414038,94042.0,94041.0,0.053238]
[1735673556582,0.43858413,94042.0,94041.0,0.053238]
[1735673557183,0.43958413,94042.0,94041.0,0.053238]
[1735673557692,0.43858413,94042.0,94041.0,0.055238]
[1735673558591,0.43858413,94042.0,94041.0,0.056238]
[1735673558890,0.44158413,94042.0,94041.0,0.054238]
[1735673560812,0.44158413,94042.0,94041.0,0.053238]
[1735673560987,0.44258413,94042.0,94041.0,0.053238]
[1735673562190,0.38934613,94042.0,94041.0,0.053238]
[1735673562489,0.004,94042.0,94041.0,0.053238]
[1735673562689,0.1145861,94057.0,94053.0,0.053232]
[1735673562882,0.053225,94065.0,94064.0,0.053225]
[1735673563486,0.13360622,94069.0,94062.0,0.053226]
[1735673563686,0.053227,94063.0,94062.0,0.053226]
[1735673564992,0.05323,94058.0,94057.0,0.053229]
[1735673565194,0.41403,94058.0,94057.0,0.053229]
[1735673565494,0.053231,94055.0,94054.0,0.053231]
[1735673566389,0.02493593,94058.0,94057.0,0.053229]
[1735673566589,0.3608,94061.0,94057.0,0.053229]
[1735673566795,0.004,94058.0,94057.0,0.053229]
[1735673567499,0.053229,94058.0,94057.0,0.053229]
[1735673567696,0.002,94058.0,94057.0,0.053229]
[1735673567990,0.006,94058.0,94057.0,0.053229]
[1735673568191,0.006,94058.0,94057.0,1.553229]
[1735673569781,0.006,94058.0,94057.0,0.053229]
[1735673570482,0.059229,94058.0,94057.0,0.053229]
[1735673571597,0.420029,94058.0,94057.0,0.053229]
[1735673571799,0.3668,94058.0,94043.0,0.0385]
[1735673571999,0.053232,94054.0,94053.0,0.053232]
[1735673573696,0.056232,94054.0,94053.0,0.053232]
[1735673574391,0.003,94054.0,94053.0,0.053232]
[1735673574696,0.004,94054.0,94053.0,0.053232]
[1735673580703,0.004,94054.0,94053.0,1.553232]
[1735673582197,0.057232,94054.0,94053.0,1.553232]
[1735673582789,0.057232,94054.0,94053.0,0.053232]
[1735673582990,0.053235,94048.0,94047.0,0.053236]
[1735673584800,0.053233,94053.0,94052.0,0.053232]
[1735673586806,0.054233,94053.0,94052.0,0.053232]
[1735673587005,0.057233,94053.0,94052.0,0.053232]
[1735673587423,0.004,94053.0,94052.0,0.053232]
[1735673587704,0.05481598,94073.0,94067.0,0.053224]
[1735673587907,0.00159498,94073.0,94067.0,0.053224]
[1735673588604,0.00159498,94073.0,94072.0,0.053222]
[1735673588798,0.05481598,94073.0,94072.0,0.053222]
[1735673589004,0.058224,94068.0,94067.0,0.053224]
[1735673589510,0.062224,94068.0,94067.0,0.054224]
[1735673589811,0.004,94068.0,94067.0,0.054224]
[1735673590608,0.009,94068.0,94067.0,0.054224]
[1735673591509,0.423024,94068.0,94048.0,0.00159494]
[1735673591703,0.053235,94049.0,94048.0,0.05482994]
[1735673591897,0.053235,94049.0,94048.0,0.00159494]
[1735673593529,0.053235,94049.0,94048.0,0.05482994]
[1735673595309,0.054235,94049.0,94048.0,0.05482994]
[1735673595506,0.07421997,94049.0,94048.0,0.05482994]
[1735673596109,0.07621997,94049.0,94048.0,0.05482994]
[1735673601408,0.07621997,94049.0,94048.0,0.00159494]
[1735673601914,0.053238,94043.0,94029.0,0.0372]
[1735673602114,0.053245,94032.0,94031.0,0.053244]
[1735673603710,0.053245,94032.0,94029.0,0.011]
[1735673603711,0.053245,94030.0,94029.0,0.003]
[1735673604720,0.053245,94030.0,94025.0,0.053248]
[1735673604721,0.053248,94026.0,94025.0,0.053248]
[1735673604921,0.05325,94021.0,94020.0,0.05325]
[1735673606318,0.05325,94021.0,94020.0,0.05625]
[1735673606517,0.05325,94021.0,94020.0,0.01]
[1735673608015,0.05325,94021.0,94020.0,0.007]
[1735673608221,0.05325,94021.0,94020.0,0.01]
[1735673608914,0.3608,94025.0,94020.0,0.01]
[1735673608915,0.053249,94024.0,94020.0,0.01]
[1735673609133,0.41405,94021.0,94020.0,0.01]
[1735673609522,0.41405,94021.0,94020.0,0.009]
[1735673610914,0.41405,94021.0,94020.0,0.006]
[1735673611118,0.41405,94021.0,94020.0,0.009]
[1735673611722,0.41405,94021.0,94020.0,0.001]
[1735673619031,0.41405,94021.0,93992.0,0.00159582]
[1735673619032,0.053266,93993.0,93992.0,0.00159582]
[1735673619225,0.053275,93979.0,93978.0,0.053275]
[1735673620425,0.054275,93979.0,93978.0,0.059275]
[1735673622025,0.054275,93979.0,93978.0,0.009]
[1735673622424,0.07342345,93979.0,93978.0,0.009]
[1735673622622,0.0733613,93979.0,93978.0,0.009]
[1735673624821,0.001,93979.0,93978.0,0.062275]
[1735673625033,0.3608,93994.0,93993.0,0.053266]
[1735673625430,0.053265,93995.0,93993.0,1.8608]
[1735673625633,0.053265,93995.0,93994.0,0.053266]
[1735673625834,0.053265,93995.0,93994.0,0.090366]
[1735673627331,0.053265,93995.0,93994.0,0.0371]
[1735673627827,0.054265,93995.0,93994.0,0.0371]
[1735673628221,0.002,93995.0,93993.0,0.3608]
[1735673628427,0.053266,93994.0,93993.0,0.3608]
[1735673630031,0.053266,93994.0,93993.0,0.3628]
[1735673630530,0.053266,93994.0,93993.0,0.416066]
[1735673631230,0.01951325,93997.0,93993.0,0.3628]
[1735673631433,0.00159645,93998.0,93994.0,0.037]
[1735673631633,0.00159645,93998.0,93997.0,0.053264]
[1735673633940,0.02134519,93998.0,93997.0,0.053264]
[1735673634140,0.00159645,93998.0,93997.0,0.053264]
[1735673637342,0.053265,93995.0,93994.0,0.053265]